Cogmind - Beta 16.1 *** ADVENTURER MODE // 2026.02.11 @ 20:36:41 Player: Lonely Shikari Result: Destroyed by H-77 Assassin with Coil Gun Performance ------------- Evolutions (6) 3000 Regions Visited (9) 1800 Robots Destroyed (91) 455 Value Destroyed (3189) 3189 Prototype IDs (8) 160 Alien Tech Used (0) 0 Bonus (194) 194 TOTAL SCORE: 8798 Bonus ------- Follower Combat Kills 194 Cogmind --------- Core Integrity 0/1150 Matter 285/300 Energy 89/100 System Corruption 14% Temperature Cool (0) Movement Core (50) Location -4/Factory Parts ------- > --- POWER (4) -------- (None) > --- PROPULSION (5) --- (None) > --- UTILITY (7) ------ Core Analyzer Recoil Stabilizer System Shield > --- WEAPON (3) ------- (None) > --- INVENTORY (5) ---- Focal Shield Improved Force Field Improved Arc Projector Peak State ------------ > --- POWER ------------ (None) > --- PROPULSION ------- Armored Huge Wheel Armored Huge Wheel > --- UTILITY ---------- Advanced Heat Sink Core Analyzer Quantum Capacitor Focal Shield Thermal Shield Point Defense System > --- WEAPON ----------- Improved Arc Projector Advanced Plasma Rifle Railgun > --- INVENTORY -------- Recoil Stabilizer Improved Force Field Improved Trap Extractor [Rating: 77] Favorites ----------- Power Fission Core Engine Heavy Ion Engine Power Core Fission Core Propulsion Carbon-fiber Leg Treads Armored Treads Leg Carbon-fiber Leg Wheel Armored Huge Wheel Utility Small Storage Unit Device Improved Heat Sink Storage Small Storage Unit Processor Experimental Targeting Computer Hackware System Shield Weapon Minigun Energy Gun High-powered Shock Rifle Energy Cannon Phase Cannon Ballistic Gun Minigun Ballistic Cannon Magnetic Acceleration Cannon Impact Weapon Heavy Flail Build | -11 -10 -9 -9 -8 -7 -6 -6 -5 -4 ------- Run | Yrd Mat Mat Sto Mat Fac Fac Ext Fac Fac Slots Evolved 12 | . . 2 . 2 2 2 . 2 2 Power 3 | . . 1 . . . 1 . . 1 Propulsion 3 | . . 1 . 1 1 . . . . Utility 5 | . . . . 1 1 1 . 1 1 Weapon 1 | . . . . . . . . 1 . Parts Attached 100 | . . 10 12 13 5 21 16 6 17 Power 21 | . . 1 2 3 1 7 5 1 1 Engine 14 | . . 1 2 2 . 4 4 1 . Core 7 | . . . . 1 1 3 1 . 1 Reactor . | . . . . . . . . . . Propulsion 27 | . . 4 5 3 2 7 4 . 2 Treads 2 | . . . . . 1 . 1 . . Leg 23 | . . 4 5 3 1 7 3 . . Wheel 2 | . . . . . . . . . 2 Hover . | . . . . . . . . . . Flight . | . . . . . . . . . . Utility 25 | . . 1 1 1 2 3 5 3 9 Device 22 | . . 1 1 . 2 3 4 3 8 Storage . | . . . . . . . . . . Processor 2 | . . . . 1 . . 1 . . Hackware 1 | . . . . . . . . . 1 Protection . | . . . . . . . . . . Artifact . | . . . . . . . . . . Weapon 27 | . . 4 4 6 . 4 2 2 5 Energy Gun 14 | . . 2 2 3 . 2 . 1 4 Energy Cannon 2 | . . 1 . . . . 1 . . Ballistic Gun 7 | . . 1 2 2 . 1 . . 1 Ballistic Cannon 2 | . . . . . . . 1 1 . Launcher . | . . . . . . . . . . Special Weapon . | . . . . . . . . . . Impact Weapon 2 | . . . . 1 . 1 . . . Slashing Weapon . | . . . . . . . . . . Piercing Weapon . | . . . . . . . . . . Special Melee Weapon . | . . . . . . . . . . Unidentified Prototypes 8 | . . 1 1 2 . 2 . . 2 Parts Lost 57 | . . . 3 5 . 6 20 12 11 Power 11 | . . . 2 . . . 5 3 1 Propulsion 19 | . . . . 4 . 5 7 1 2 Utility 13 | . . . . . . . 5 3 5 Weapon 14 | . . . 1 1 . 1 3 5 3 Highest Loss Streak 11 | . . . 3 3 . 3 7 6 11 To Critical Strikes 1 | . . . . 1 . . . . . Average Backups 5 | 5 2 3 6 7 7 7 6 . . Power . | 1 1 . . 1 2 1 . . . Propulsion . | 3 . 1 3 1 . . . . . Utility 2 | . . . . 2 3 3 2 . . Weapon 2 | 1 1 2 2 1 2 2 2 . . Tool/Special . | . . . . . . . . . . Unused Backups 8 | . . 2 2 1 . 2 1 . . Power 1 | . . . . . . 1 . . . Propulsion 2 | . . . 2 . . . . . . Utility 2 | . . . . 1 . . 1 . . Weapon 3 | . . 2 . . . 1 . . . Tool/Special . | . . . . . . . . . . Average Slot Usage (%) 81 | . 85 86 98 95 87 96 73 59 41 Engine 10 | . 14 22 21 13 11 11 7 4 . Core 3 | . . . . 4 2 7 4 2 . Leg 21 | . 28 27 32 32 25 27 17 4 . Device 17 | . . 4 11 9 15 19 22 23 20 Storage 5 | . 14 11 11 9 7 6 3 . . Processor 4 | . . . . 8 7 6 4 5 5 Energy Gun 5 | . 14 10 11 8 6 5 2 1 5 Ballistic Gun 6 | . 14 11 11 8 7 5 2 7 4 Peak Build Rating 77 | 6 6 12 25 34 34 63 63 59 77 Average Rating 39 | 6 6 9 20 29 30 49 48 44 46 On Entrance 22 | 6 6 6 12 24 27 34 63 36 13 Avg Prop Armor Cover (%) 8 | . . . . . . 8 8 . 8 Naked Turns . | . . . . . . . . . . Heaviest Build 59 | 13 13 20 26 26 31 55 59 36 37 Greatest Support 70 | 20 20 33 43 53 40 70 70 16 56 Greatest Overweight (x) 5 | . . . 1 . 1 1 3 2 5 Average Overweight (x) . | . . . . . . . . 1 1 Largest Inventory Capacity 8 | 8 8 8 8 8 8 8 8 5 5 Average Capacity 7 | 8 8 8 8 8 8 8 6 5 5 Most Carried 8 | 5 2 6 8 8 8 8 8 3 5 Average Carried 5 | 4 2 3 6 7 7 7 6 . . Final Capacity 8 | 8 8 8 8 8 8 8 5 5 5 Final Carried 8 | 2 2 6 7 8 8 8 4 . 3 Class Distribution -------------------- 57% | Scavenger-Mutant 34% | Mutant Dominant Class ---------------- Mutant | -10/Materials Scavenger-Mutant | -9/Materials Mutant | -9/Storage Scavenger-Mutant | -8/Materials Scavenger-Mutant | -7/Factory Scavenger-Mutant | -6/Factory Scavenger-Mutant | -6/Extension Mutant | -5/Factory Mutant | -4/Factory Resources | -11 -10 -9 -9 -8 -7 -6 -6 -5 -4 ----------- Run | Yrd Mat Mat Sto Mat Fac Fac Ext Fac Fac Matter Collected 2260 | 193 19 191 249 239 100 442 324 343 160 Remotely . | . . . . . . . . . . Salvage Created 3941 | . 46 288 615 617 102 1012 796 465 . Parts 156 | . 8 17 33 24 3 33 24 14 . Haulers Intercepted . | . . . . . . . . . . Recyclers Shooed 5 | . . 1 . . . . 3 1 . Parts Field Recycled . | . . . . . . . . . . Retrieved Matter . | . . . . . . . . . . Parts Self-Destructed . | . . . . . . . . . . Prevented . | . . . . . . . . . . Parts Restored . | . . . . . . . . . . Kills | -11 -10 -9 -9 -8 -7 -6 -6 -5 -4 ------- Run | Yrd Mat Mat Sto Mat Fac Fac Ext Fac Fac Combat Hostiles Destroyed 76 | . 3 8 14 11 2 18 13 7 . Melee 10 | . . . . 5 . 3 1 1 . Guns 51 | . 3 8 14 5 . 11 5 5 . Cannons 2 | . . . . . . . 1 1 . Classes Destroyed 14 | . 1 3 4 3 . 1 1 1 . Worker 2 | . . . . . . . . 2 . Builder 2 | . . . . 1 . . 1 . . Recycler 5 | . . . . 2 . 1 . 2 . Operator 1 | . . . 1 . . . . . . Watcher 5 | . . 2 1 1 . 1 . . . Swarmer 22 | . 3 4 . 4 . 7 . 4 . Grunt 34 | . . 3 10 5 1 7 7 1 . Brawler 1 | . . . 1 . . . . . . Duelist 3 | . . 1 1 . . 1 . . . Protector 1 | . . . 1 . . . . . . Sentry 6 | . . . 1 1 1 . 3 . . Hunter 6 | . . . . 1 . 2 1 2 . Programmer 2 | . . . . . . 1 1 . . Behemoth 1 | . . . . . . . 1 . . Best Kill Streak 8 | . 3 4 8 6 1 4 6 4 . Combat Bots Only 8 | . 3 3 8 6 1 3 6 4 . Max Kills in Single Turn 2 | . 1 2 2 2 1 1 1 1 . Gunslinging 1 | . . 1 1 . . . . . . Exploded . | . . . . . . . . . . Melee 1 | . . . . 1 . 1 1 1 . Uniques/NPCs Destroyed . | . . . . . . . . . . Combat | -11 -10 -9 -9 -8 -7 -6 -6 -5 -4 -------- Run | Yrd Mat Mat Sto Mat Fac Fac Ext Fac Fac Hostile Shots Fired 1131 | . 15 20 72 88 27 167 282 133 327 Missed 367 | . 6 5 13 25 4 53 95 31 135 Hits 764 | . 9 15 59 63 23 114 187 102 192 Melee 10 | . . 2 3 . . 5 . . . Projectile 754 | . 9 13 56 63 23 109 187 102 192 Critical Strikes 18 | . . 1 1 1 . 3 2 3 7 Part Disruptions 1 | . . . . . . . . . 1 Damage Taken 8611 | . 95 134 621 659 126 1207 2118 1240 2411 Core 2330 | . 25 12 117 38 4 213 458 296 1167 Absorbed by Shields 704 | . . . . . . 296 408 . . Ignored by Resistances 2803 | . 28 41 183 186 43 426 727 468 701 Core Remaining (%) 77 | 100 90 . 67 93 99 . 21 70 . Volleys Fired 231 | . 6 24 38 28 . 34 51 43 7 Largest 3 | . 2 2 2 2 . 2 2 3 1 Hottest 145 | . 60 79 79 112 . 85 145 141 35 Shots Fired 426 | . 12 48 73 54 . 66 88 78 7 Gun 378 | . 12 48 73 54 . 66 60 58 7 Cannon 48 | . . . . . . . 28 20 . Launcher . | . . . . . . . . . . Special . | . . . . . . . . . . Kinetic 219 | . 6 24 38 25 . 33 19 67 7 Thermal 186 | . 6 24 35 28 . 13 69 11 . Explosive . | . . . . . . . . . . Electromagnetic 21 | . . . . 1 . 20 . . . Robot Hit Streak 28 | . 5 13 17 14 . 28 24 18 3 Robot Miss Streak 6 | . 3 5 2 1 . 1 5 6 3 Penetration Max 1 | . . . . . . . 1 1 . Secondary Targets 5 | . . 2 3 . . . . . . Max Gunslinging Chain 1 | . . 1 1 . . . . . . Shots Hit Robots 379 | . 6 26 61 60 4 70 88 61 3 Core Hits 133 | . 3 13 28 18 . 28 20 22 1 Critical Kills 1 | . . . 1 . . . . . . Critical Parts Destroyed 7 | . . . . 1 1 2 3 . . Critical Strikes 18 | . . 1 5 2 1 3 5 1 . Burn 9 | . . 1 4 1 . 1 2 . . Destroy 2 | . . . 1 1 . . . . . Blast 1 | . . . . . . . . 1 . Smash 6 | . . . . . 1 2 3 . . Melee Attacks 57 | . . . . 17 4 14 20 2 . Impact 57 | . . . . 17 4 14 20 2 . Slashing . | . . . . . . . . . . Piercing . | . . . . . . . . . . Sneak Attacks 5 | . . . . 2 . 1 1 1 . Combat Hostiles . | . . . . . . . . . . Follow-up Attacks . | . . . . . . . . . . Damage Inflicted 9522 | . 85 367 901 1582 180 2063 2833 1422 89 Guns 5366 | . 85 367 901 710 . 1256 1234 737 76 Cannons 1175 | . . . . . . . 611 564 . Explosions 171 | . . . . . . 171 . . . Melee 2753 | . . . . 872 180 636 961 104 . Ramming 57 | . . . . . . . 27 17 13 Kinetic 2992 | . 41 207 445 286 . 497 310 1130 76 Thermal 3267 | . 44 160 456 409 . 492 1535 171 . Explosive . | . . . . . . . . . . Electromagnetic 453 | . . . . 15 . 438 . . . Impact 2753 | . . . . 872 180 636 961 104 . Slashing . | . . . . . . . . . . Piercing . | . . . . . . . . . . Highest Corruption 14 | . . . . 3 . 1 1 . 14 Average Corruption 1 | . . . . 1 . 1 1 . 7 Corruption Purged . | . . . . . . . . . . Corruption Blocked . | . . . . . . . . . . Effects 23 | . . . . 11 . 2 7 . 3 Message Errors 9 | . . . . 6 . . 2 . 1 Matter Fused 4 | . . . . 2 . 1 1 . . Heat Flow Errors 2 | . . . . 1 . 1 . . . Parts Fused 1 | . . . . . . . 1 . . Data Loss (minor) 4 | . . . . 2 . . 1 . 1 Data Loss (major) 1 | . . . . . . . 1 . . Misfires 1 | . . . . . . . 1 . . Misdirections 1 | . . . . . . . . . 1 Overload Shots 22 | . . . . . . 7 15 . . Effects 1 | . . . . . . . 1 . . Energy Bleed 1 | . . . . . . . 1 . . Overflow Damage 927 | . . . . 244 78 306 255 44 . Projectiles 33 | . . . . . . . 7 26 . Explosions . | . . . . . . . . . . Melee 894 | . . . . 244 78 306 248 18 . Knockbacks 15 | . . . . 3 1 . 2 9 . Impact 6 | . . . . 3 1 . 1 1 . Kinetic 9 | . . . . . . . 1 8 . Secondary . | . . . . . . . . . . Self-Inflicted Damage 5 | . . . . . . . . . 5 Shots . | . . . . . . . . . . Rammed 4 | . . . . . . . . . 4 Targets Rammed 16 | . . . . . . 1 3 8 4 Kicked 12 | . . . . . . 1 3 8 . Crushed . | . . . . . . . . . . Highest Temperature 286 | . 6 154 183 220 . 141 286 30 . Average Temperature 63 | . 6 71 85 35 . 31 93 8 . Received Heat Transfer 1853 | . 42 18 354 357 48 72 544 174 244 Siege Activations . | . . . . . . . . . . Martial Activations . | . . . . . . . . . . Shielding Activations . | . . . . . . . . . . Robots Disrupted . | . . . . . . . . . . Combat Hostiles . | . . . . . . . . . . Robots Corrupted 13 | . . . . 2 2 4 5 . . Combat Hostiles 12 | . . . . 1 2 4 5 . . Parts Fried 21 | . . . . 4 2 11 3 1 . Impact Corruptions 33 | . . . . 7 2 9 14 1 . Robots Melted 1 | . . . . . . . 1 . . Combat Hostiles 1 | . . . . . . . 1 . . Parts Melted 11 | . . . 5 1 . 2 3 . . Heat Transferred 6131 | . 100 481 1192 999 . 735 2291 333 . Parts Sabotaged . | . . . . . . . . . . Parts Stolen . | . . . . . . . . . . Parts Stripped . | . . . . . . . . . . Power Chain Reactions 1 | . . . . . . 1 . . . Alert | -11 -10 -9 -9 -8 -7 -6 -6 -5 -4 ------- Run | Yrd Mat Mat Sto Mat Fac Fac Ext Fac Fac Maximum Alert Level 1 | . . . . . . . 1 . . Low Security (%) 97 | 100 100 100 100 100 100 100 87 100 100 Level 1 2 | . . . . . . . 12 . . Level 2 . | . . . . . . . . . . Level 3 . | . . . . . . . . . . Level 4 . | . . . . . . . . . . Level 5 . | . . . . . . . . . . High Security . | . . . . . . . . . . Max Security . | . . . . . . . . . . Peak Influence 231 | . 70 150 141 137 31 154 231 80 27 Initial 45 | . . 7 45 26 16 . 29 12 27 Average 39 | . 32 99 81 43 4 31 64 11 1 Influence Increases 2597 | . 70 221 487 356 61 573 566 257 6 Destroy 0b10 Robot/C 1620 | . 60 160 340 260 40 360 260 140 . Destroy 0b10 Robot/NC 80 | . . 10 15 20 . 10 5 20 . Destroy Leader 310 | . 10 34 92 42 10 52 50 20 . Allied During Kill 20 | . . . 17 3 . . . . . Successful Hack 92 | . . 15 12 7 11 29 18 . . Disable Machine 18 | . . . 9 9 . . . . . Destroy Structure 22 | . . 2 2 . . 2 8 2 6 Lose Combat Pursuer 435 | . . . . 15 . 120 225 75 . Influence Decreases 2597 | . 50 113 541 386 105 501 608 222 71 Entered New Map 271 | . . 13 83 48 28 . 43 18 38 Time Decay 1755 | . 50 100 293 289 77 441 378 94 33 Lost Part 369 | . . . 30 49 . 60 120 110 . Lost Ally 135 | . . . 135 . . . . . . Purge Threat 67 | . . . . . . . 67 . . Squads Dispatched 22 | . . 2 4 1 . 5 6 . 4 Investigation 7 | . . . . 1 . 1 5 . . Extermination 3 | . . . . . . 2 . . 1 Reinforcement 10 | . . 2 2 . . 2 1 . 3 Assault 2 | . . . 2 . . . . . . Garrison . | . . . . . . . . . . Intercept . | . . . . . . . . . . Searches Triggered . | . . . . . . . . . . Construction Impeded 1 | . . . 1 . . . . . . Haulers Reinforced . | . . . . . . . . . . Active Scanning Responses . | . . . . . . . . . . Cargo Convoy Interrupts . | . . . . . . . . . . Stealth | -11 -10 -9 -9 -8 -7 -6 -6 -5 -4 --------- Run | Yrd Mat Mat Sto Mat Fac Fac Ext Fac Fac Distress Signals 14 | . . 2 3 . 2 2 3 1 1 Communications Jammed 3 | . . . . . . . 3 . . Distress Signals 3 | . . . . . . . 3 . . Times Spotted 179 | . 8 12 24 17 2 30 40 21 25 Peak Tracking Total 19 | . 4 5 9 6 2 5 7 7 19 Tactical Retreats 17 | . . . . 1 . 4 9 3 . Traps | -11 -10 -9 -9 -8 -7 -6 -6 -5 -4 ------- Run | Yrd Mat Mat Sto Mat Fac Fac Ext Fac Fac Traps Triggered 9 | . 1 . 3 3 . 2 . . . Indirectly . | . . . . . . . . . . Trap Hack Attempts . | . . . . . . . . . . Triggered . | . . . . . . . . . . Disarmed 7 | . . . . . . 7 . . . Reprogrammed . | . . . . . . . . . . Reused . | . . . . . . . . . . Traps Extracted . | . . . . . . . . . . Installed . | . . . . . . . . . . Triggered . | . . . . . . . . . . Machines | -11 -10 -9 -9 -8 -7 -6 -6 -5 -4 ---------- Run | Yrd Mat Mat Sto Mat Fac Fac Ext Fac Fac Machines Disabled 2 | . . . 1 1 . . . . . Max in Single Turn 1 | . . . . 1 . . . . . Machines Repaired . | . . . . . . . . . . Machines Dismantled . | . . . . . . . . . . Machines Sabotaged . | . . . . . . . . . . Overloaded Fab Kills . | . . . . . . . . . . Hacking | -11 -10 -9 -9 -8 -7 -6 -6 -5 -4 --------- Run | Yrd Mat Mat Sto Mat Fac Fac Ext Fac Fac Machines Accessed 21 | . . 2 6 3 1 3 6 . . Terminals 20 | . . 2 6 3 1 2 6 . . Fabricators . | . . . . . . . . . . Repair Stations . | . . . . . . . . . . Recycling Units 1 | . . . . . . 1 . . . Scanalyzers . | . . . . . . . . . . Garrison Access . | . . . . . . . . . . Total Hacks 55 | . . 5 12 9 4 8 17 . . Successful 26 | . . 3 6 4 4 5 4 . . Failed 29 | . . 2 6 5 . 3 13 . . Catastrophic 8 | . . . 1 3 . 1 3 . . Database Lockouts . | . . . . . . . . . . Manual 36 | . . 5 8 9 2 6 6 . . Terminals 53 | . . 5 12 9 4 6 17 . . Fabricators . | . . . . . . . . . . Repair Stations . | . . . . . . . . . . Recycling Units 2 | . . . . . . 2 . . . Scanalyzers . | . . . . . . . . . . Garrison Access . | . . . . . . . . . . Terminal Hacks 16 | . . 2 4 1 3 2 4 . . Robot Analysis 2 | . . . . . . . 2 . . Open Door 3 | . . . 3 . . . . . . Level Access Points 4 | . . 1 1 1 1 . . . . Branch Access Points 1 | . . 1 . . . . . . . Emergency Access Points 1 | . . . . . 1 . . . . Unreport Threat 1 | . . . . . . . 1 . . Disarm Traps 2 | . . . . . . 2 . . . Zone Layout 2 | . . . . . 1 . 1 . . Fabricator Hacks . | . . . . . . . . . . Repair Station Hacks . | . . . . . . . . . . Recycling Unit Hacks . | . . . . . . . . . . Scanalyzer . | . . . . . . . . . . Garrison Access Hacks . | . . . . . . . . . . Unauthorized Hacks 10 | . . 1 2 3 1 3 . . . Terminals 9 | . . 1 2 3 1 2 . . . Botnet 9 | . . 1 2 3 1 2 . . . Fabricators . | . . . . . . . . . . Repair Stations . | . . . . . . . . . . Recycling Units 1 | . . . . . . 1 . . . Mask 1 | . . . . . . 1 . . . Scanalyzers . | . . . . . . . . . . Garrison Access . | . . . . . . . . . . Data Cores Recovered 1 | . . . 1 . . . . . . Used . | . . . . . . . . . . Hacking Detections 15 | . . 2 2 3 . 2 6 . . Full Trace Events 7 | . . . . 1 . 1 5 . . Feedback Events 1 | . . . . 1 . . . . . Corruption 1 | . . . . 1 . . . . . Feedback Blocked . | . . . . . . . . . . Robot Schematics Acquired . | . . . . . . . . . . Robots Built . | . . . . . . . . . . Authchips . | . . . . . . . . . . Time . | . . . . . . . . . . Total Robot Build Rating . | . . . . . . . . . . Part Schematics Acquired . | . . . . . . . . . . Parts Built . | . . . . . . . . . . Authchips . | . . . . . . . . . . Time . | . . . . . . . . . . Total Part Build Rating . | . . . . . . . . . . Part Studies Acquired . | . . . . . . . . . . Parts Repaired . | . . . . . . . . . . Time . | . . . . . . . . . . Parts Recycled . | . . . . . . . . . . Recycled Matter . | . . . . . . . . . . Retrieved Matter . | . . . . . . . . . . Retrieved Components . | . . . . . . . . . . Parts Scanalyzed . | . . . . . . . . . . Part Schematics Acquired . | . . . . . . . . . . Parts Damaged . | . . . . . . . . . . Bothacking | -11 -10 -9 -9 -8 -7 -6 -6 -5 -4 ------------ Run | Yrd Mat Mat Sto Mat Fac Fac Ext Fac Fac Used RIF Installer . | . . . . . . . . . . Robots Hacked . | . . . . . . . . . . Non-combat . | . . . . . . . . . . Combat . | . . . . . . . . . . Robot Hacks Applied . | . . . . . . . . . . Relay Couplers Released . | . . . . . . . . . . Fabnet Peak Effective % . | . . . . . . . . . . Robots Rewired 1 | . . . 1 . . . . . . Allies Hacked . | . . . . . . . . . . Hacks Repelled . | . . . . . . . . . . Allies | -11 -10 -9 -9 -8 -7 -6 -6 -5 -4 -------- Run | Yrd Mat Mat Sto Mat Fac Fac Ext Fac Fac Total Allies 12 | . . . 12 . . . . . . Largest Group 10 | . . . 10 3 . . . . . Highest-Rated Group 88 | . . . 88 24 . . . . . Highest-Rated Ally 31 | . . . 31 8 . . . . . Total Orders 2 | . . . . . 1 . . 1 . EXPLORE 2 | . . . . . 1 . . 1 . Ally Attacks 75 | . . . 52 23 . . . . . Total Damage 737 | . . . 529 208 . . . . . Kills 7 | . . . 5 2 . . . . . Allies Corrupted . | . . . . . . . . . . Allies Melted . | . . . . . . . . . . Intel | -11 -10 -9 -9 -8 -7 -6 -6 -5 -4 ------- Run | Yrd Mat Mat Sto Mat Fac Fac Ext Fac Fac Active Infowar (turns) 2753 | . . . . . 330 1483 940 . . Traps 2753 | . . . . . 330 1483 940 . . Jamming 387 | . . . . . . . 387 . . Robot Analysis Total 2 | . . . . . . . 2 . . Derelict Logs Recovered . | . . . . . . . . . . Drone Launches 4 | . . . . . 2 . . 2 . Drone Recoveries 1 | . . . . . 1 . . . . Exploration | -11 -10 -9 -9 -8 -7 -6 -6 -5 -4 ------------- Run | Yrd Mat Mat Sto Mat Fac Fac Ext Fac Fac Turns Passed 6113 | 2 122 207 613 747 459 1483 1206 598 676 Spaces Moved 3414 | 1 85 84 354 484 270 831 668 218 419 Core 226 | . . . . . . . 73 9 144 Treads 13 | . . . . . . . 13 . . Legs 2900 | 1 85 84 354 484 270 831 582 209 . Wheels 275 | . . . . . . . . . 275 Hover . | . . . . . . . . . . Flight . | . . . . . . . . . . Fastest Speed 50 | 120 120 120 120 120 120 120 50 100 50 Average Speed 135 | 120 120 120 120 120 129 131 133 208 149 Slowest Speed 320 | 120 120 120 190 120 190 190 320 260 300 Overloaded Moves . | . . . . . . . . . . Propulsion Burnouts . | . . . . . . . . . . Robots Hopped 2 | . . . 2 . . . . . . Potential Cave-ins . | . . . . . . . . . . Cave-ins Triggered . | . . . . . . . . . . Exploration Rate (%) 25 | 2 30 13 45 45 13 24 65 7 10 Regions Visited 9 Branch Regions 2 Pre-discovered Areas . | . . . . . . . . . . Known Exits Taken 4 | . . 1 1 1 1 . . . . Unknown Exits Taken 5 | 1 1 . . . . 1 1 1 . Scrap Searched . | . . . . . . . . . . Spaces Dug . | . . . . . . . . . . Terrain Destroyed 14 | . . . . . . 1 8 1 4 Melee . | . . . . . . . . . . Projectile 14 | . . . . . . 1 8 1 4 AOE . | . . . . . . . . . . Terrain Rammed . | . . . . . . . . . . Walls Destroyed . | . . . . . . . . . . Machines Disabled . | . . . . . . . . . . Actions | -11 -10 -9 -9 -8 -7 -6 -6 -5 -4 --------- Run | Yrd Mat Mat Sto Mat Fac Fac Ext Fac Fac Total 4379 | 4 93 139 465 570 372 1137 859 283 457 Wait 457 | . 3 17 43 10 86 210 85 3 . Move 3401 | . 84 83 349 483 269 830 667 217 419 Hop 2 | . . . 2 . . . . . . Pick Up 31 | . . 2 6 8 2 3 3 2 5 Fast Attach 38 | . . 3 4 3 2 6 9 1 10 Attach 29 | . . 1 2 6 1 3 6 6 4 Detach 3 | . . . . . . . . . 3 Swap 72 | . . 7 9 10 6 23 12 1 4 Drop 39 | 4 . 2 9 5 2 13 3 . 1 Fire 231 | . 6 24 38 28 . 34 51 43 7 Melee 57 | . . . . 17 4 14 20 2 . Ram 4 | . . . . . . . . . 4 Kick 12 | . . . . . . 1 3 8 . Crush . | . . . . . . . . . . Escape Stasis . | . . . . . . . . . . Rewire 3 | . . . 3 . . . . . . Trap . | . . . . . . . . . . Miscellaneous . | . . . . . . . . . . Route ------- -11/Scrapyard -10/Materials -9/Materials (discovered 6 exits: Mat x3 / Min / *Sto x2) -9/Storage -8/Materials (discovered 3 exits: *Fac x3) -7/Factory (discovered 5 exits: *Fac x4 / [*Low]) -6/Factory -6/Extension (discovered 2 exits: [*Fac] / [*Cet]) -5/Factory -4/Factory History --------- Turn | Location | Event 3 | -11/Scrapyard | Discovered new exit (range 0) 3 | -11/Scrapyard | Entered Materials 107 | -10/Materials | Discovered new exit (range 16) 125 | -10/Materials | Entered another Materials area 125 | -9/Materials | Evolved 2 slots: Power x1, Propulsion x1 139 | -9/Materials | Identified exit to Materials 140 | -9/Materials | Identified exit to Mines 140 | -9/Materials | Identified exit to Storage 332 | -9/Materials | Entered Storage 355 | -9/Storage | Met a pair of Derelict thieves 512 | -9/Storage | Lost 3 parts (2p1w) 522 | -9/Storage | Destroyed 8 combat bots 681 | -9/Storage | Assisted by bots powering up and referring to "LRC-V3" 892 | -9/Storage | Lost 7 allies 905 | -9/Storage | Found Prototype Processor 945 | -9/Storage | Entered Materials 945 | -8/Materials | Accompanied by 3 allies 945 | -8/Materials | Evolved 2 slots: Propulsion x1, Utility x1 946 | -8/Materials | Identified Exp. Targeting Computer 1460 | -8/Materials | Lost 3 parts (3n) 1475 | -8/Materials | Build established: Scavenger-Mutant 1562 | -8/Materials | Identified exit to Factory 1692 | -8/Materials | Entered Factory 1692 | -7/Factory | Evolved 2 slots: Propulsion x1, Utility x1 1767 | -7/Factory | Discovered new exit (range 43) 1834 | -7/Factory | Identified exit to Factory 2151 | -7/Factory | Entered another Factory area 2151 | -6/Factory | Evolved 2 slots: Power x1, Utility x1 3453 | -6/Factory | Lost 3 parts (2n1w) 3616 | -6/Factory | Discovered new exit (range 16) 3634 | -6/Factory | Entered Extension 3967 | -6/Extension | Spotted B-75 Beast 4187 | -6/Extension | Destroyed B-75 Beast 4231 | -6/Extension | Lost 7 parts (2p3n1u1w) 4275 | -6/Extension | Spotted B-75 Beast 4342 | -6/Extension | Lost 4 parts (2p1n1u) 4396 | -6/Extension | Core integrity fell below 50% 4785 | -6/Extension | Discovered new exit (range 15) 4785 | -6/Extension | Discovered new exit (range 15) 4787 | -6/Extension | Lost 7 parts (2n3u2w) 4835 | -6/Extension | Build established: Mutant 4840 | -6/Extension | Entered Factory 4840 | -5/Factory | Evolved 2 slots: Utility x1, Weapon x1 5219 | -5/Factory | Lost 6 parts (2p2u2w) 5422 | -5/Factory | Discovered new exit (range 15) 5422 | -5/Factory | Spotted B-75 Beast 5438 | -5/Factory | Entered another Factory area 5438 | -4/Factory | Evolved 2 slots: Power x1, Utility x1 5460 | -4/Factory | Lost 6 parts (1p1n1u3w) 5984 | -4/Factory | Found Quantum Capacitor 6101 | -4/Factory | System corruption reached 10% 6103 | -4/Factory | Core integrity fell below 50% 6109 | -4/Factory | Core integrity fell below 20% 6114 | -4/Factory | Destroyed by H-77 Assassin with Coil Gun Last Messages --------------- 06107_ K-01 Serf collects debris. 06107_ Acquired Lgt. Nuclear Core. 06108_ Door malfunctions. 06109_ Knocked back. 06109_ X-82 Rainmaker knocked back. 06109_ Knocked back. 06109_ P-70 Sage resets X-82 Rainmaker, system corruption cleaned. 06110_ Lgt. Nuclear Core destroyed. 06110_ Slug penetrates Wall. 06111_ JNVW3K0,UIP#>7XSTMC&7ZS 06111_ Knocked back. 06112_ P-70 Sage knocked back. 06112_ P-70 Sage resets P-70 Sage, system corruption cleaned. 06113_ X-82 Rainmaker knocked back. 06113_ Slug penetrates Wall. 06113_ U-05 Engineer suffers critical hit (Destroy). 06113_ U-05 Engineer destroyed. Map ----- +----------------------------------------------------+ | " """ # #??????????????????????? | | " """ # #??????????????????????? | | " """ # #??????????????????????? | | #########/#####% #??????????????????????? | | " """ #???# =# #??????????????????????? | | " """ #???# #H #??????????????????????? | | " """ #???# """ # =#????##????????????????? | | #???# """ # %[=#??? ??????????????? | | #???# """ # *=%#???"""""??????????????? | | #######???#!! # =%%#?? ??????????????? | | ??????????# % # *%#? """""""?????????????? | | ??????????# !# xp# ??????????????? | | ??????#######"##"/### p%p# """""""?????????????? | | ??????# o ==/ #?????????? | | ??????# # p # """""""?????????????? | | ??????# % # xs#?? ??????????????? | | ??????# # #????!!! ????????????? | | ??????# # #?????? ???????????? | | ??????# # #???????? ??????????? | | ??????# # #??????????##??????????? | | ??????# # u #??????????????????????? | | ??????# # #??????????????????????? | | ??????# # #??????????????????????? | | ??????# #u #??????????????????????? | | ??????###############u #??????????????????????? | | ????????????????????# @#??????????????????????? | | ????????????????????# *= #??????????????????????? | | ????????????????? !%| ??????????????????????? | | ??????????????# kh = ??????????????????????? | | ??????????????# h ?????????????????????? | | ??????????????+ k A ?????????????????????? | | ??????????????# ????????????????????? | | ??????????????# ###+#####????????????????????? | | ??????????????# ?? ?????????????????????????? | | ????????????? ??? ?????????????????????????? | | ?????????????? ??? ?????????????????????????? | | ?????????????? """???? ?????????????????????????? | | ????????????????????? ??????????????????????????? | | ?????????????????????????????????????????????????? | | ?????????????????????????????????????????????????? | | ?????????????????????????????????????????????????? | | ?????????????????????????????????????????????????? | | ?????????????????????????????????????????????????? | | ?????????????????????????????????????????????????? | | ?????????????????????????????????????????????????? | | ?????????????????????????????????????????????????? | | ?????????????????????????????????????????????????? | | ?????????????????????????????????????????????????? | | ?????????????????????????????????????????????????? | | ?????????????????????????????????????????????????? | +----------------------------------------------------+ Best States ------------- Heat Dissipation 59 Energy Generation 44 Energy Capacity 1050 Matter Stores 300 Matter Capacity 300 Sight Range 16 Terrain Scan Density 10 Jamming Range 12 Power Amplification 20 Resistance: KI 20 Resistance: TH 40 Resistance: EX 20 Resistance: EM 20 Resistance: I 20 Resistance: S 20 Resistance: P 20 Evasion (%) 55 Targeting Accuracy 12 Core Analysis 6 Recoil Reduction 1 Energy Filtering 30 Offensive Hacking 10 Defensive Hacking 10 Trap Extractor Capacity 6 Item Schematics ----------------- None Robot Schematics ------------------ None Fabricated ------------ Nothing Repaired ---------- Nothing Studied --------- None Alien Tech Used ----------------- None Achievements -------------- None Challenges ------------ None Game ------ Seed AblativeWarlordFlamer Manual? 0 Play Time 01:11:44 Cumulative 131.7 hours Start 2026.02.11 @ 19:18:19 End 2026.02.11 @ 20:36:41 Sessions 1 Manual Loads 0 Difficulty Adventurer Special Mode None Game No. 57 Rogue 0 Adventurer 57 Explorer 0 Win Type - Total 0 Types 0/0/0/0/0/0/0/0/0/0 Lore% 29 Gallery% 44 Achievement% 27 Wizard Run 0 Options --------- Layout 1 ASCII 0 Keyboard 1 Movement Numpad Keybinds 0 Fullscreen 1 Font 24/Smallcaps Map View 50x35 Zoom Use 0% Tactical HUD 1 Map Filters NONE Filters NONE Steam 1 RUN: 94a86cf4-753f-44d9-8eed-40f2260751d1